bitfinex/quotes_SOLUSD_20241029
["timestamp","ask_amount","ask_price","bid_price","bid_amount"]
[1730231443331,0.12549,178.44,178.34,20.0]
[1730231443534,0.12549,178.44,178.32,27.14149165]
[1730231443535,0.12549,178.42,178.32,20.0]
[1730231443724,0.12549,178.42,178.32,27.14149165]
[1730231444036,0.12549,178.42,178.33,20.0]
[1730231444239,23.902374,178.43,178.33,47.14149165]
[1730231444616,0.12549,178.42,178.32,20.0]
[1730231445216,0.12549,178.42,178.3,20.0]
[1730231445932,0.12549,178.4,178.3,20.0]
[1730231446323,24.027864,178.38,178.3,20.0]
[1730231446644,24.027864,178.38,178.29,33.21409165]
[1730231446645,24.027864,178.36,178.23,11.35209239]
[1730231446828,24.027864,178.36,178.23,6.3661]
[1730231447030,24.027864,178.36,178.21,27.14149165]
[1730231448033,29.634464,178.36,178.21,27.14149165]
[1730231448234,29.634464,178.36,178.22,47.14149165]
[1730231448932,29.634464,178.36,178.22,20.0]
[1730231449141,29.634464,178.36,178.23,20.0]
[1730231450934,29.634464,178.36,178.22,47.14149165]
[1730231452036,29.634464,178.36,178.2,47.14149165]
[1730231452237,29.634464,178.36,178.22,20.0]
[1730231452850,29.634464,178.36,178.22,47.14149165]
[1730231453056,29.634464,178.36,178.21,27.14149165]
[1730231453242,29.634464,178.36,178.22,27.14149165]
[1730231453554,29.634464,178.36,178.23,20.0]
[1730231454742,29.634464,178.36,178.22,20.0]
[1730231455950,29.634464,178.36,178.2,47.14149165]
[1730231456142,24.027864,178.34,178.2,20.0]
[1730231456329,24.027864,178.32,178.19,20.0]
[1730231456743,24.027864,178.32,178.19,16.99970249]
[1730231457856,29.635964,178.32,178.19,16.99970249]
[1730231458259,29.635964,178.32,178.2,16.99970249]
[1730231458859,24.027864,178.32,178.21,16.99970249]
[1730231459040,24.027864,178.32,178.22,20.0]
[1730231459245,24.027864,178.32,178.2,16.99970249]
[1730231459551,24.027864,178.32,178.17,20.0]
[1730231459552,24.027864,178.32,178.22,20.0]
[1730231460137,24.027864,178.32,178.21,20.0]
[1730231460335,29.635764,178.32,178.21,20.0]
[1730231461157,29.635764,178.32,178.19,20.0]
[1730231461332,29.635764,178.32,178.19,36.99970249]
[1730231461943,24.027864,178.32,178.2,16.99970249]
[1730231462396,24.027864,178.32,178.21,16.99970249]
[1730231462539,24.027864,178.32,178.22,16.99970249]
[1730231462945,24.027864,178.32,178.23,16.99970249]
[1730231463148,24.027864,178.32,178.24,20.0]
[1730231463356,24.027864,178.32,178.24,36.99970249]
[1730231463558,24.027864,178.32,178.24,20.0]
[1730231463768,0.25098,178.32,178.24,20.0]
[1730231463942,22.44924718,178.33,178.24,16.99970249]
[1730231464139,22.44924718,178.33,178.25,16.99970249]
[1730231464666,0.12549,178.32,178.23,20.0]
[1730231464869,0.12549,178.32,178.21,16.99970249]
[1730231465062,0.12549,178.32,178.22,20.0]
[1730231465360,0.25098,178.32,178.23,16.99970249]
[1730231465546,0.25098,178.32,178.22,36.99970249]
[1730231465859,24.027864,178.32,178.22,36.99970249]
[1730231466764,24.027864,178.32,178.24,16.99970249]
[1730231467066,5.84349919,178.31,178.24,16.99970249]
[1730231467260,5.84349919,178.31,178.26,16.99970249]
[1730231467461,5.84349919,178.31,178.21,20.0]
[1730231467462,5.84349919,178.31,178.25,16.99970249]
[1730231467767,5.84349919,178.31,178.27,16.99970249]
[1730231468148,5.84349919,178.31,178.27,20.0]
[1730231468869,5.84349919,178.31,178.26,20.0]
[1730231471269,5.84349919,178.31,178.27,16.99970249]
[1730231471645,5.84349919,178.31,178.26,16.99970249]
[1730231471867,5.84349919,178.31,178.27,20.0]
[1730231472258,5.84349919,178.31,178.24,16.99970249]
[1730231472463,5.84349919,178.31,178.25,20.0]
[1730231475061,5.84349919,178.31,178.23,20.0]
[1730231475062,24.027864,178.3,178.23,20.0]
[1730231475570,24.027864,178.3,178.22,20.0]
[1730231475785,24.027864,178.3,178.24,20.0]
[1730231476452,30.525464,178.28,178.18,16.99970249]
[1730231476855,30.525464,178.28,178.19,16.99970249]
[1730231477474,5.84440477,178.27,178.19,16.99970249]
[1730231477976,5.84440477,178.27,178.2,20.0]
[1730231479558,24.027864,178.26,178.2,20.0]
[1730231479970,5.84440477,178.27,178.2,20.0]
[1730231479971,5.84440477,178.27,178.2,36.99970249]
[1730231480267,5.84440477,178.27,178.22,20.0]
[1730231480875,5.84440477,178.27,178.24,20.0]
[1730231481078,5.84440477,178.27,178.25,20.0]
[1730231481374,5.84171683,178.31,178.25,20.0]
[1730231481573,5.84171683,178.31,178.25,36.99970249]
[1730231481878,6.0274,178.36,178.25,36.99970249]
[1730231481879,6.0274,178.36,178.27,16.99970249]
[1730231482050,5.8411438,178.33,178.28,16.99970249]
[1730231482377,0.12549,178.37,178.28,16.99970249]
[1730231482678,5.84105875,178.34,178.28,16.99970249]
[1730231482858,0.12549,178.37,178.29,20.0]
[1730231483176,5.8410105,178.34,178.29,20.0]
[1730231483358,0.25098,178.37,178.29,20.0]
[1730231483681,5.8410105,178.34,178.29,20.0]
[1730231483857,0.12549,178.37,178.29,20.0]
[1730231484051,0.25098,178.37,178.29,20.0]
[1730231484254,5.84088056,178.35,178.29,20.0]
[1730231484551,5.84088056,178.35,178.21,6.6076]
[1730231484552,0.25098,178.34,178.25,20.0]
[1730231484756,24.027864,178.34,178.23,16.99970249]
[1730231484971,24.027864,178.34,178.22,16.99970249]
[1730231486153,24.027864,178.34,178.23,16.99970249]
[1730231486567,24.027864,178.34,178.21,6.6076]
[1730231486568,24.027864,178.34,178.21,23.60730249]
[1730231486789,24.027864,178.34,178.21,6.6076]
[1730231487070,24.027864,178.3,178.19,33.42410249]
[1730231487271,24.027864,178.3,178.2,16.99970249]
[1730231487857,24.027864,178.3,178.19,33.42410249]
[1730231488065,24.027864,178.3,178.19,16.99970249]
[1730231488276,24.027864,178.3,178.18,16.99970249]
[1730231489083,24.027864,178.3,178.19,16.99970249]
[1730231489252,24.027864,178.3,178.2,20.0]
[1730231489454,24.027864,178.3,178.22,20.0]
[1730231490357,24.027864,178.3,178.22,36.99970249]
[1730231490557,24.027864,178.3,178.23,16.99970249]
[1730231490754,24.027864,178.3,178.24,16.99970249]
[1730231490956,16.1827,178.33,178.26,20.0]
[1730231491558,0.12549,178.32,178.25,20.0]
[1730231491755,16.1827,178.33,178.25,36.99970249]
[1730231491960,5.84088056,178.35,178.28,16.99970249]
[1730231492161,0.12549,178.34,178.28,16.99970249]
[1730231492361,5.84088056,178.35,178.3,16.99970249]
[1730231492775,5.84088056,178.35,178.29,36.99970249]
[1730231493079,5.84088056,178.35,178.29,20.0]
[1730231494180,5.84088056,178.35,178.29,16.99970249]
[1730231494381,5.84088056,178.35,178.3,20.0]
[1730231494562,5.84088056,178.35,178.29,20.0]
[1730231496054,5.84088056,178.35,178.28,20.0]
[1730231496457,5.84088056,178.35,178.3,36.99970249]
[1730231496679,5.84088056,178.35,178.31,16.99970249]
[1730231496891,5.84088056,178.35,178.3,20.0]
[1730231496892,5.84088056,178.35,178.33,16.99970249]
[1730231497057,15.713,178.42,178.34,16.99970249]
[1730231497260,0.12549,178.41,178.33,16.99970249]
[1730231497476,5.83833277,178.39,178.33,16.99970249]
[1730231498864,5.83833277,178.39,178.33,20.0]
[1730231500563,0.12549,178.38,178.29,16.99970249]
[1730231500765,0.12549,178.38,178.3,36.99970249]
[1730231500766,24.027864,178.38,178.3,36.99970249]
[1730231501366,24.027864,178.38,178.31,16.99970249]
[1730231501582,24.027864,178.38,178.32,20.0]
[1730231501880,5.83833277,178.39,178.32,36.99970249]
[1730231502066,5.83833277,178.39,178.33,16.99970249]
[1730231502266,5.83833277,178.39,178.34,36.99970249]
[1730231502483,5.83833277,178.39,178.37,16.99970249]
[1730231502682,6.0268,178.45,178.38,20.0]
[1730231502975,5.83472929,178.43,178.38,20.0]
[1730231503695,5.83472929,178.43,178.4,16.99970249]
[1730231503991,5.83472929,178.43,178.4,20.0]
[1730231504162,5.83472929,178.43,178.4,36.99970249]
[1730231504472,5.83472929,178.43,178.42,20.0]
[1730231504683,15.4919,178.51,178.42,36.99970249]
[1730231504984,5.83417559,178.46,178.42,36.99970249]
[1730231505186,0.12549,178.5,178.43,16.99970249]
[1730231505369,5.83400255,178.46,178.45,16.99970249]
[1730231505567,15.4919,178.51,178.45,36.99970249]
[1730231505788,6.351,178.54,178.45,20.0]
[1730231506478,5.83385474,178.53,178.45,20.0]
[1730231506678,5.83385474,178.53,178.44,16.99970249]
[1730231506679,0.12549,178.52,178.44,27.12077827]
[1730231506878,24.027864,178.52,178.45,20.0]
[1730231507200,24.027864,178.52,178.41,6.0117]
[1730231507201,24.027864,178.52,178.43,20.0]
[1730231507786,24.027864,178.52,178.39,27.12077827]
[1730231507989,24.027864,178.52,178.39,20.0]
[1730231508163,29.629464,178.52,178.39,20.0]
[1730231508363,29.629464,178.52,178.38,27.12077827]
[1730231508572,29.629464,178.52,178.36,6.0117]
[1730231508573,29.629464,178.52,178.39,27.12077827]
[1730231509383,24.027864,178.52,178.4,27.12077827]
[1730231509685,24.027864,178.52,178.41,20.0]
[1730231510070,24.027864,178.52,178.42,47.12077827]
[1730231510871,24.027864,178.52,178.42,20.0]
[1730231511078,24.027864,178.52,178.39,20.0]
[1730231511375,24.027864,178.52,178.39,47.12077827]
[1730231511874,29.629464,178.52,178.38,27.12077827]
[1730231512093,29.629464,178.52,178.37,20.0]
[1730231512094,29.629464,178.52,178.39,20.0]
[1730231512275,29.629464,178.52,178.35,42.84827827]
[1730231512276,24.027864,178.48,178.35,42.84827827]
[1730231512466,24.027864,178.48,178.36,27.12077827]
[1730231513682,16.024,178.56,178.45,27.12077827]
[1730231513897,16.024,178.56,178.47,27.12077827]
[1730231514185,16.024,178.56,178.45,27.12077827]
[1730231514390,16.024,178.56,178.46,20.0]
[1730231514769,16.024,178.56,178.46,47.12077827]
[1730231514968,16.024,178.56,178.43,15.1913]
[1730231514969,16.024,178.56,178.47,27.12077827]
[1730231515186,16.024,178.56,178.47,20.0]
[1730231515395,16.024,178.56,178.47,47.12077827]
[1730231515988,16.024,178.56,178.48,20.0]
[1730231516788,16.024,178.56,178.48,27.12077827]
[1730231516994,16.024,178.56,178.49,20.0]
[1730231517973,16.024,178.56,178.48,47.12077827]
[1730231518996,16.024,178.56,178.5,20.0]
[1730231519663,5.83222109,178.55,178.51,27.12077827]
[1730231520066,5.83222109,178.55,178.54,27.12077827]
[1730231520298,5.83222109,178.55,178.54,47.12077827]
[1730231520475,16.0047,178.61,178.54,47.12077827]
[1730231520786,5.83049318,178.6,178.56,47.12077827]
[1730231520988,5.83049318,178.6,178.57,27.12077827]
[1730231521184,5.83049318,178.6,178.58,27.12077827]
[1730231521383,0.5777539,178.64,178.59,27.12077827]
[1730231521595,0.5777539,178.64,178.61,27.12077827]
[1730231521778,0.5777539,178.64,178.6,20.0]
[1730231522294,0.5777539,178.64,178.63,47.12077827]
[1730231524291,0.5777539,178.64,178.61,27.12077827]
[1730231524475,0.5777539,178.64,178.63,27.12077827]
[1730231524672,0.5777539,178.64,178.63,47.12077827]
[1730231526096,0.5777539,178.64,178.63,47.24626827]
[1730231529779,0.5777539,178.64,178.63,47.12077827]
[1730231535205,0.5777539,178.64,178.63,27.12077827]
[1730231535502,0.5777539,178.64,178.62,27.12077827]
[1730231535676,0.5777539,178.64,178.59,6.1503]
[1730231535677,0.5777539,178.64,178.63,27.12077827]
[1730231535881,5.83617204,178.74,178.68,0.1]
[1730231536085,16.6167,178.8,178.73,27.12077827]
[1730231536292,5.83570593,178.79,178.73,27.12077827]
[1730231536488,5.83570593,178.79,178.74,20.0]
[1730231536880,16.6167,178.8,178.74,20.0]
[1730231539486,16.6167,178.8,178.73,20.0]
[1730231540102,16.6167,178.8,178.73,47.12077827]
[1730231542787,16.6167,178.8,178.73,20.0]
[1730231543405,16.6167,178.8,178.65,27.22077827]
[1730231543406,0.25098,178.79,178.69,27.12077827]
[1730231543596,24.027864,178.79,178.69,20.0]
[1730231543781,24.027864,178.79,178.67,27.12077827]
[1730231544503,24.027864,178.77,178.63,33.44577827]
[1730231544678,24.027864,178.77,178.66,27.12077827]
[1730231544884,24.027864,178.77,178.69,27.12077827]
[1730231545205,16.6167,178.8,178.71,27.12077827]
[1730231545706,16.6167,178.8,178.72,20.0]
[1730231546003,16.6167,178.8,178.72,27.12077827]
[1730231546198,16.6167,178.8,178.71,27.12077827]
[1730231546500,16.6167,178.8,178.67,6.4095]
[1730231546501,16.6167,178.8,178.72,20.0]
[1730231546894,16.6167,178.8,178.7,27.12077827]
[1730231547086,16.6167,178.8,178.71,20.0]
[1730231547499,5.83257727,178.79,178.71,20.0]
[1730231547906,5.83257727,178.79,178.7,20.0]
[1730231548107,5.83257727,178.79,178.7,27.12077827]
[1730231548309,5.83257727,178.79,178.71,20.0]
[1730231549005,5.83257727,178.79,178.7,20.0]
[1730231549302,24.027864,178.78,178.7,20.0]
[1730231549482,24.027864,178.78,178.68,20.0]
[1730231549682,24.027864,178.78,178.64,27.12077827]
[1730231550089,0.12549,178.76,178.64,27.12077827]
[1730231550304,24.027864,178.76,178.63,33.43027827]
[1730231550887,24.027864,178.76,178.63,23.22333771]
[1730231551308,24.027864,178.76,178.64,20.0]
[1730231551512,29.622064,178.76,178.64,20.0]
[1730231551714,24.027864,178.74,178.63,20.0]
[1730231552216,24.027864,178.74,178.62,20.0]
[1730231552217,15.0411,178.73,178.62,20.0]
[1730231552453,15.0411,178.73,178.61,16.91383771]
[1730231552587,15.0411,178.77,178.68,20.0]
[1730231552912,15.0411,178.77,178.7,20.0]
[1730231553404,15.0411,178.77,178.7,36.91383771]
[1730231553609,15.0411,178.77,178.7,20.0]
[1730231554309,15.0411,178.77,178.65,0.1]
[1730231554310,0.12549,178.76,178.65,16.91383771]
[1730231554516,24.027864,178.76,178.64,27.0589872]
[1730231554808,24.027864,178.76,178.62,27.0589872]
[1730231555007,24.027864,178.74,178.62,27.0589872]
[1730231555193,24.027864,178.74,178.6,28.69318359]
[1730231555391,24.027864,178.74,178.64,27.0589872]
[1730231556019,24.027864,178.74,178.62,27.0589872]
[1730231556526,24.027864,178.74,178.63,20.0]
[1730231556719,24.027864,178.74,178.61,27.0589872]
[1730231556903,24.027864,178.74,178.62,20.0]
[1730231557102,24.027864,178.74,178.62,47.0589872]
[1730231557314,24.027864,178.74,178.62,20.0]
[1730231557728,5.83707211,178.73,178.6,20.0]
[1730231558024,24.027864,178.72,178.6,20.0]
[1730231558421,24.027864,178.72,178.61,27.0589872]
[1730231558608,24.027864,178.72,178.64,20.0]
[1730231558802,24.027864,178.72,178.62,27.0589872]
[1730231559032,24.027864,178.72,178.63,20.0]
[1730231559704,24.027864,178.72,178.62,20.0]
[1730231559903,24.027864,178.72,178.62,27.0589872]
[1730231560104,24.027864,178.72,178.63,20.0]
[1730231560914,24.027864,178.72,178.62,20.0]
[1730231562135,24.027864,178.72,178.63,27.0589872]
[1730231562334,24.027864,178.72,178.64,20.0]
[1730231562629,24.027864,178.72,178.62,20.0]
[1730231562809,24.027864,178.72,178.6,28.71306049]
[1730231562810,24.027864,178.72,178.61,27.0589872]
[1730231563131,24.027864,178.72,178.62,20.0]
[1730231563631,0.12549,178.7,178.6,21.65407329]
[1730231563811,24.027864,178.7,178.6,20.0]
[1730231564017,24.027864,178.68,178.58,20.0]
[1730231564218,24.027864,178.68,178.58,47.0589872]
[1730231564414,24.027864,178.68,178.59,27.0589872]
[1730231564932,15.9725,178.69,178.61,27.0589872]
[1730231565105,15.9725,178.69,178.59,27.0589872]
[1730231565605,15.9725,178.69,178.6,20.0]
[1730231566201,15.9725,178.69,178.61,47.0589872]
[1730231566407,15.9725,178.69,178.56,47.1844772]
[1730231566408,15.9725,178.69,178.63,47.0589872]
[1730231567029,21.14197211,178.73,178.64,27.0589872]
[1730231567613,21.14197211,178.73,178.65,20.0]
[1730231568505,21.14197211,178.73,178.63,20.0]
[1730231568708,21.14197211,178.73,178.62,27.0589872]
[1730231568709,0.12549,178.72,178.62,20.0]
[1730231568923,0.25098,178.72,178.62,20.0]
[1730231569309,5.83591525,178.71,178.63,20.0]
[1730231570627,5.83591525,178.71,178.65,20.0]
[1730231571032,5.83591525,178.71,178.62,20.0]
[1730231571927,5.83591525,178.71,178.6,20.0]
[1730231572125,5.83591525,178.71,178.6,27.0589872]
[1730231572437,5.83591525,178.71,178.61,47.0589872]
[1730231572629,5.83591525,178.71,178.61,20.0]
[1730231573424,5.83591525,178.71,178.62,20.0]
[1730231575005,5.83591525,178.71,178.62,27.0589872]
[1730231575622,5.83591525,178.71,178.63,20.0]
[1730231575829,5.83591525,178.71,178.61,27.0589872]
[1730231576022,5.83591525,178.71,178.62,20.0]
[1730231576432,24.027864,178.7,178.62,20.0]
[1730231576731,24.027864,178.7,178.58,16.92502684]
[1730231576931,24.027864,178.7,178.59,16.92502684]
[1730231577610,24.027864,178.7,178.55,16.6235]
[1730231577817,24.027864,178.7,178.59,20.0]
[1730231578736,24.027864,178.7,178.57,20.0]
[1730231578940,0.12549,178.68,178.56,20.0]
[1730231579241,24.027864,178.68,178.56,20.0]
[1730231579612,0.25098,178.66,178.56,20.0]
[1730231579817,24.027864,178.66,178.56,20.0]
[1730231580437,24.027864,178.66,178.58,20.0]
[1730231581139,5.84213999,178.67,178.6,16.92502684]
[1730231581736,5.84213999,178.67,178.62,20.0]
[1730231582219,5.84213999,178.67,178.61,20.0]
[1730231582941,5.84213999,178.67,178.61,16.92502684]
[1730231583139,5.84213999,178.67,178.62,20.0]
[1730231583647,5.84213999,178.67,178.62,36.92502684]
[1730231583939,5.84213999,178.67,178.61,16.92502684]
[1730231584137,5.84213999,178.67,178.62,20.0]
[1730231584615,5.84213999,178.67,178.61,20.0]
[1730231584820,5.84213999,178.67,178.6,20.0]
[1730231585037,5.84213999,178.67,178.59,20.0]
[1730231585235,5.84213999,178.67,178.59,16.92502684]
[1730231585442,5.84213999,178.67,178.6,20.0]
[1730231585748,5.84213999,178.67,178.6,36.92502684]
[1730231587247,5.84213999,178.67,178.57,0.12549]
[1730231587248,5.84213999,178.67,178.63,20.0]
[1730231587545,5.84213999,178.67,178.62,20.0]
[1730231588049,15.344,178.69,178.59,16.92502684]
[1730231588250,15.344,178.69,178.6,20.0]
[1730231588439,24.027864,178.68,178.6,20.0]
[1730231588743,24.027864,178.68,178.58,16.92502684]
[1730231588930,24.027864,178.68,178.59,20.0]
[1730231589336,24.027864,178.68,178.57,20.0]
[1730231590551,24.027864,178.64,178.51,32.57322684]
[1730231591723,24.027864,178.64,178.52,36.92502684]
[1730231593546,5.83994436,178.63,178.52,36.92502684]
[1730231594453,5.83994436,178.63,178.52,20.0]
[1730231594631,5.83994436,178.63,178.52,36.92502684]
[1730231595651,5.83994436,178.63,178.52,20.0]
[1730231596331,24.027864,178.62,178.52,20.0]
[1730231597042,24.027864,178.62,178.52,39.6056]
[1730231597352,5.83994436,178.63,178.52,56.53062684]
[1730231597555,5.83994436,178.63,178.56,16.92502684]
[1730231597770,5.83994436,178.63,178.58,16.92502684]
[1730231597925,15.344,178.69,178.62,16.92502684]
[1730231598242,15.344,178.69,178.64,19.5924]
[1730231598452,15.344,178.69,178.65,20.0]
[1730231598949,12.14594985,178.71,178.67,20.0]
[1730231598950,5.83864985,178.71,178.67,20.0]
[1730231599250,15.0551,178.74,178.67,20.0]
[1730231599454,5.83806518,178.71,178.65,20.0]
[1730231599960,5.83889165,178.72,178.65,20.0]
[1730231600653,5.83889165,178.72,178.67,20.0]
[1730231601730,5.83889165,178.72,178.68,19.5879]
[1730231601948,5.83889165,178.72,178.69,20.0]
[1730231602839,5.83889165,178.72,178.63,20.0]
[1730231603532,5.83889165,178.72,178.63,36.92502684]
[1730231603834,5.83889165,178.72,178.67,36.92502684]
[1730231604044,0.12549,178.78,178.67,20.0]
[1730231604247,5.83656551,178.75,178.67,20.0]
[1730231604444,15.1061,178.79,178.67,20.0]
[1730231604654,15.1061,178.79,178.66,20.0]
[1730231604850,5.83725984,178.74,178.66,20.0]
[1730231605045,0.25098,178.78,178.65,20.0]
[1730231605249,5.83721343,178.73,178.65,20.0]
[1730231605445,5.83721343,178.73,178.66,36.92502684]
[1730231605651,0.25098,178.78,178.68,20.0]
[1730231605958,5.83766392,178.75,178.68,20.0]
[1730231606157,24.027864,178.78,178.68,20.0]
[1730231606359,5.83664428,178.75,178.68,20.0]
[1730231606543,24.027864,178.78,178.66,20.0]
[1730231606948,5.83745473,178.77,178.66,36.92502684]
[1730231607470,5.83745473,178.77,178.67,16.92502684]
[1730231607646,5.83745473,178.77,178.68,20.0]
[1730231607845,5.83745473,178.77,178.66,36.92502684]
[1730231609241,5.83745473,178.77,178.65,16.92502684]
[1730231609441,5.83745473,178.77,178.66,36.92502684]
[1730231610156,5.83745473,178.77,178.65,16.92502684]
[1730231610343,5.83745473,178.77,178.66,20.0]
[1730231611073,23.776884,178.76,178.65,20.0]
[1730231612156,23.776884,178.76,178.64,20.0]
[1730231612347,23.776884,178.76,178.63,36.92502684]
[1730231612568,23.776884,178.76,178.64,20.0]
[1730231612739,23.776884,178.76,178.63,16.92502684]
[1730231613057,23.776884,178.76,178.6,16.92502684]
[1730231613058,0.25098,178.75,178.6,16.92502684]
[1730231613454,0.25098,178.75,178.58,16.92502684]
[1730231613854,0.25098,178.75,178.59,39.53432684]
[1730231614169,0.25098,178.75,178.6,20.0]
[1730231615167,5.83745473,178.77,178.63,20.0]
[1730231615470,0.12549,178.76,178.63,36.92502684]
[1730231615765,5.83745473,178.77,178.65,36.92502684]
[1730231616265,23.902374,178.76,178.65,36.92502684]
[1730231616450,23.902374,178.76,178.65,20.0]
[1730231617167,23.776884,178.74,178.62,16.92502684]
[1730231617358,23.776884,178.74,178.63,20.0]
[1730231617565,0.25098,178.73,178.63,20.0]
[1730231617951,0.25098,178.73,178.6,20.0]
[1730231618951,23.776884,178.72,178.6,20.0]
[1730231619147,23.776884,178.72,178.62,16.92502684]
[1730231619475,23.776884,178.72,178.63,20.0]
[1730231619857,23.776884,178.72,178.61,20.0]
[1730231620263,23.776884,178.72,178.61,36.92502684]
[1730231620671,0.3359,178.73,178.64,16.92502684]
[1730231621064,0.3359,178.73,178.65,20.0]
[1730231621557,0.3359,178.73,178.66,20.0]
[1730231622352,0.3359,178.73,178.67,16.92502684]
[1730231622550,0.3359,178.73,178.68,20.0]
[1730231622955,0.3359,178.73,178.7,20.0]
[1730231623676,0.3359,178.73,178.68,20.0]
[1730231625356,0.3359,178.73,178.64,20.0]
[1730231628384,0.3359,178.73,178.64,36.92502684]
[1730231628584,0.3359,178.73,178.64,20.0]
[1730231629279,0.3359,178.73,178.64,36.92502684]
[1730231631363,0.3359,178.73,178.64,20.0]
[1730231631570,0.3359,178.73,178.63,20.0]
[1730231634573,5.83910673,178.72,178.63,20.0]
[1730231634974,23.776884,178.71,178.63,20.0]
[1730231635165,40.091184,178.71,178.6,20.0]
[1730231637588,0.12549,178.7,178.59,20.0]
[1730231637795,0.25098,178.7,178.59,20.0]
[1730231638089,0.25098,178.7,178.54,21.1523]
[1730231638892,0.25098,178.7,178.55,0.12549]
[1730231639485,0.25098,178.7,178.55,20.12549]
[1730231641492,0.25098,178.7,178.57,36.92502684]
[1730231641675,0.25098,178.7,178.59,20.0]
[1730231642590,0.12549,178.7,178.6,20.0]
[1730231643378,0.12549,178.7,178.59,20.0]
[1730231643579,0.12549,178.7,178.58,20.0]
[1730231644899,23.776884,178.68,178.59,16.92502684]
[1730231645203,5.84052403,178.69,178.63,16.92502684]
[1730231645496,16.3143,178.71,178.62,6.1131]
[1730231645669,22.15387447,178.71,178.63,20.0]
[1730231646181,22.15387447,178.71,178.61,20.0]
[1730231646385,22.15387447,178.71,178.59,20.12549]
[1730231646573,5.83957447,178.71,178.63,36.92502684]
[1730231646780,5.83957447,178.71,178.65,36.92502684]
[1730231647290,5.83872509,178.74,178.64,36.92502684]
[1730231647494,5.83872509,178.74,178.66,20.0]
[1730231648203,5.83872509,178.74,178.65,20.0]
[1730231648600,5.83872509,178.74,178.65,16.92502684]
[1730231648790,5.83872509,178.74,178.66,20.0]
[1730231648976,5.83872509,178.74,178.71,20.0]
[1730231649184,16.8204539,178.82,178.71,36.92502684]
[1730231649499,5.83701765,178.77,178.71,20.0]
[1730231649814,16.8204539,178.82,178.69,20.0]
[1730231649981,5.83715053,178.77,178.68,20.0]
[1730231650186,0.12549,178.81,178.68,20.0]
[1730231650478,5.83728248,178.77,178.68,36.92502684]
[1730231650682,24.027864,178.81,178.68,36.92502684]
[1730231651104,5.83729965,178.78,178.68,36.92502684]
[1730231651297,24.027864,178.81,178.68,36.92502684]
[1730231651502,5.83734261,178.77,178.68,36.92502684]
[1730231651682,24.027864,178.81,178.68,36.92502684]
[1730231652001,24.027864,178.81,178.69,16.92502684]
[1730231652002,5.8371794,178.78,178.69,16.92502684]
[1730231652191,24.027864,178.81,178.7,20.0]
[1730231652192,23.902374,178.81,178.7,20.0]
[1730231652530,23.776884,178.79,178.7,36.92502684]
[1730231653111,5.8369936,178.8,178.71,16.92502684]
[1730231654189,5.8369936,178.8,178.7,20.0]
[1730231654391,5.8369936,178.8,178.71,20.0]
[1730231654606,5.8369936,178.8,178.7,20.12549]
[1730231655109,6.1728936,178.8,178.7,0.12549]
[1730231655415,6.1728936,178.8,178.69,0.25098]
[1730231655911,6.1728936,178.8,178.69,17.17600684]
[1730231656688,6.1728936,178.8,178.69,0.12549]
[1730231657308,6.1728936,178.8,178.73,16.92502684]
[1730231657535,6.1728936,178.8,178.74,16.92502684]
[1730231657824,0.3359,178.8,178.74,23.54532684]
[1730231658117,0.3359,178.8,178.76,16.92502684]
[1730231658418,0.3359,178.8,178.77,16.92502684]
[1730231658594,0.3359,178.8,178.78,16.92502684]
[1730231660521,0.3359,178.8,178.79,37.05051684]
[1730231661106,0.3359,178.8,178.79,37.17600684]
[1730231661305,0.3359,178.8,178.79,53.48830684]
[1730231661897,0.35829875,178.82,178.8,0.25098]
[1730231662111,22.14827515,178.91,178.82,20.0]
[1730231662321,22.14827515,178.91,178.82,36.92502684]
[1730231662816,22.14827515,178.91,178.81,16.92502684]
[1730231663010,22.14827515,178.91,178.82,20.0]